bitfinex/quotes_BTCUSD_20230109
["timestamp","ask_amount","ask_price","bid_price","bid_amount"]
[1673230623924,0.48592168,17210.0,17209.0,0.00509198]
[1673230624215,0.48592168,17210.0,17209.0,0.305]
[1673230624418,0.48592168,17210.0,17209.0,0.005]
[1673230625904,0.83365093,17210.0,17209.0,0.005]
[1673230626155,0.48567054,17210.0,17209.0,0.005]
[1673230626410,0.22471753,17210.0,17209.0,0.005]
[1673230626663,0.051,17210.0,17209.0,0.305]
[1673230627425,0.22471753,17210.0,17209.0,0.305]
[1673230627671,0.22489716,17210.0,17209.0,0.305]
[1673230627927,0.22471753,17210.0,17209.0,0.305]
[1673230628188,0.48567054,17210.0,17209.0,0.305]
[1673230628442,0.22471753,17210.0,17209.0,0.305]
[1673230628687,0.22471753,17210.0,17209.0,0.30509198]
[1673230628945,0.22471753,17210.0,17209.0,0.005]
[1673230629182,0.48567054,17210.0,17209.0,0.005]
[1673230629424,0.78648839,17210.0,17209.0,0.005]
[1673230629673,0.91246769,17210.0,17209.0,0.005]
[1673230629925,0.59048576,17210.0,17209.0,0.005]
[1673230630417,0.46367963,17210.0,17209.0,0.005]
[1673230630911,0.9852735,17210.0,17209.0,0.005]
[1673230631157,0.46367963,17210.0,17209.0,0.005]
[1673230631409,0.9852735,17210.0,17209.0,0.005]
[1673230633679,0.5727735,17210.0,17209.0,0.005]
[1673230634675,0.05117963,17210.0,17209.0,0.1623]
[1673230634922,0.05117963,17210.0,17209.0,0.005]
[1673230634923,0.48585957,17210.0,17209.0,0.005]
[1673230636413,0.051,17210.0,17209.0,0.005]
[1673230637404,0.57259387,17210.0,17209.0,0.005]
[1673230638411,0.76973257,17210.0,17209.0,0.005]
[1673230638669,0.7699122,17210.0,17209.0,0.005]
[1673230639666,0.24831833,17210.0,17209.0,0.005]
[1673230640668,1.21099505,17210.0,17209.0,0.005]
[1673230640926,1.51099505,17210.0,17209.0,0.005]
[1673230641179,1.60807576,17210.0,17209.0,0.005]
[1673230641435,1.02008595,17210.0,17209.0,0.005]
[1673230642409,1.60794592,17210.0,17209.0,0.005]
[1673230642660,1.84994051,17210.0,17209.0,0.005]
[1673230642916,0.25976363,17210.0,17209.0,0.005]
[1673230643170,0.75170819,17210.0,17209.0,0.005]
[1673230643450,0.75152856,17210.0,17209.0,0.005]
[1673230645977,0.1637,17210.0,17209.0,0.005]
[1673230646228,0.16387963,17210.0,17209.0,0.005]
[1673230647761,0.87557274,17210.0,17209.0,0.005]
[1673230648008,0.16387963,17210.0,17209.0,0.005]
[1673230649250,0.75170819,17210.0,17209.0,0.005]
[1673230651571,0.92420195,17210.0,17209.0,0.005]
[1673230651793,0.46387963,17210.0,17209.0,0.005]
[1673230652034,1.22529569,17210.0,17209.0,0.005]
[1673230652293,1.32111099,17210.0,17209.0,0.005]
[1673230652552,1.05160679,17210.0,17209.0,0.005]
[1673230653304,0.75160679,17210.0,17209.0,0.005]
[1673230653791,0.16387963,17210.0,17209.0,0.005]
[1673230654287,1.05160679,17210.0,17209.0,0.005]
[1673230654807,0.93890679,17210.0,17209.0,0.005]
[1673230655049,1.12526747,17210.0,17209.0,0.005]
[1673230656812,0.63890679,17210.0,17209.0,0.005]
[1673230657068,0.05117963,17210.0,17209.0,0.005]
[1673230658581,0.63890679,17210.0,17209.0,0.005]
[1673230661924,0.05117963,17210.0,17209.0,0.005]
[1673230662908,0.63890679,17210.0,17209.0,0.005]
[1673230663158,0.93890679,17210.0,17209.0,0.005]
[1673230663404,0.91502011,17210.0,17209.0,0.005]
[1673230664642,0.45469779,17210.0,17209.0,0.005]
[1673230665148,0.35117963,17210.0,17209.0,0.005]
[1673230666392,0.81150195,17210.0,17209.0,0.005]
[1673230666878,0.35117963,17210.0,17209.0,0.005]
[1673230669471,0.81150195,17210.0,17209.0,0.005]
[1673230669689,0.90738595,17210.0,17209.0,0.005]
[1673230669935,1.09053455,17210.0,17209.0,0.005]
[1673230671438,0.3,17209.0,17206.0,2.30804857]
[1673230671775,0.52274266,17207.0,17206.0,2.30804857]
[1673230672728,0.52274266,17207.0,17206.0,2.33404857]
[1673230672973,0.52274266,17208.0,17206.0,2.30804857]
[1673230673244,0.015,17207.0,17206.0,2.33804857]
[1673230674274,0.52274266,17208.0,17206.0,2.30804857]
[1673230675008,0.054,17207.0,17206.0,2.31204857]
[1673230675277,0.52274266,17208.0,17206.0,2.30804857]
[1673230675550,0.64974266,17208.0,17206.0,2.31104857]
[1673230675816,0.43555791,17207.0,17206.0,2.31104857]
[1673230676067,0.48955791,17207.0,17206.0,2.31204857]
[1673230676321,0.054,17207.0,17206.0,2.31204857]
[1673230676564,0.52274266,17208.0,17207.0,0.3]
[1673230676854,0.64992229,17208.0,17207.0,0.3]
[1673230677873,0.52292229,17208.0,17207.0,0.3]
[1673230678899,0.52292229,17208.0,17207.0,0.303]
[1673230679153,0.64992229,17208.0,17207.0,0.303]
[1673230680409,0.64992229,17208.0,17207.0,0.003]
[1673230680648,0.12717963,17208.0,17207.0,0.003]
[1673230680899,0.12717963,17208.0,17207.0,0.303]
[1673230682924,0.43511614,17208.0,17207.0,0.003]
[1673230683454,0.35237963,17208.0,17207.0,0.003]
[1673230683711,0.58843213,17207.0,17206.0,2.30804857]
[1673230683962,0.23987963,17208.0,17207.0,0.003]
[1673230684214,0.55257963,17208.0,17207.0,0.003]
[1673230685237,0.35257963,17208.0,17207.0,0.003]
[1673230686317,0.42540046,17208.0,17207.0,0.003]
[1673230686576,0.35257963,17208.0,17207.0,0.003]
[1673230686834,0.94058171,17208.0,17207.0,0.003]
[1673230687335,0.35257963,17208.0,17207.0,0.003]
[1673230687589,0.127,17208.0,17207.0,0.54310523]
[1673230687845,0.127,17208.0,17207.0,0.30542734]
[1673230688337,0.64965133,17208.0,17207.0,0.303]
[1673230688607,0.64965133,17208.0,17207.0,0.30542734]
[1673230688840,0.64965133,17208.0,17207.0,0.303]
[1673230690615,0.64965133,17208.0,17207.0,0.003]
[1673230690859,0.2507632,17208.0,17207.0,0.003]
[1673230691104,0.25094283,17208.0,17207.0,0.003]
[1673230691603,0.83892352,17208.0,17207.0,0.003]
[1673230692106,0.25094283,17208.0,17207.0,0.003]
[1673230692354,0.83892352,17208.0,17207.0,0.003]
[1673230692608,0.25094283,17208.0,17207.0,0.003]
[1673230693102,0.12717963,17208.0,17207.0,0.003]
[1673230693364,0.82726032,17208.0,17207.0,0.003]
[1673230693617,0.93996032,17208.0,17207.0,0.003]
[1673230693864,0.35197963,17208.0,17207.0,0.003]
[1673230694124,0.65197963,17208.0,17207.0,0.003]
[1673230694388,0.76319011,17208.0,17207.0,0.003]
[1673230694894,1.22331531,17208.0,17207.0,0.003]
[1673230695146,0.35197963,17208.0,17207.0,0.003]
[1673230695894,0.93997717,17208.0,17207.0,0.003]
[1673230697622,0.93997717,17208.0,17207.0,0.00288509]
[1673230700101,0.35197963,17208.0,17207.0,0.00288509]
[1673230700354,0.93995222,17208.0,17207.0,0.00288509]
[1673230702120,1.10995996,17208.0,17207.0,0.00288509]
[1673230702359,0.52198737,17208.0,17207.0,0.00288509]
[1673230702625,0.35197963,17208.0,17207.0,0.00288509]
[1673230702874,0.94002019,17208.0,17207.0,0.00288509]
[1673230703386,0.35197963,17208.0,17207.0,0.00288509]
[1673230703636,0.94002045,17208.0,17207.0,0.00288509]
[1673230703886,0.8219942,17208.0,17207.0,0.00288509]
[1673230704631,0.65197963,17208.0,17207.0,0.00288509]
[1673230706117,1.20798883,17208.0,17207.0,0.00288509]
[1673230706853,0.96156363,17208.0,17207.0,0.00288509]
[1673230709458,1.43742806,17208.0,17207.0,0.00288509]
[1673230712090,1.89755326,17208.0,17207.0,0.00288509]
[1673230712376,1.52934416,17208.0,17207.0,0.00288509]
[1673230712602,0.92373543,17208.0,17207.0,0.00288509]
[1673230712820,0.8108558,17208.0,17207.0,0.00288509]
[1673230713048,0.7696758,17208.0,17207.0,0.00288509]
[1673230713262,0.181704,17208.0,17207.0,0.00288509]
[1673230713706,0.70429002,17208.0,17207.0,0.00288509]
[1673230714159,0.43763815,17208.0,17207.0,0.00288509]
[1673230714598,1.0253718,17210.0,17207.0,0.00288509]
[1673230714826,0.6129718,17210.0,17207.0,0.2406608]
[1673230715079,0.025,17210.0,17207.0,0.30298291]
[1673230715309,0.6129718,17210.0,17207.0,0.30298291]
[1673230715523,0.9129718,17210.0,17207.0,0.30298291]
[1673230715749,0.6129718,17210.0,17207.0,0.30298291]
[1673230715981,0.6129718,17210.0,17207.0,0.5406608]
[1673230716434,0.6129718,17210.0,17207.0,0.30298291]
[1673230716435,0.00017963,17209.0,17207.0,0.30298291]
[1673230716664,0.6129718,17210.0,17207.0,0.30009782]
[1673230716878,0.6409718,17210.0,17207.0,0.31109782]
[1673230717102,0.9409718,17210.0,17207.0,0.31109782]
[1673230717597,0.6409718,17210.0,17207.0,0.31109782]
[1673230718036,0.75047557,17210.0,17207.0,0.011]
[1673230718257,0.3,17209.0,17207.0,0.011]
[1673230718729,0.28166825,17209.0,17207.0,0.011]
[1673230718984,0.28166825,17209.0,17206.0,0.3]
[1673230719207,0.10461547,17209.0,17206.0,0.3]
[1673230719411,0.13261547,17209.0,17207.0,0.009]
[1673230720085,0.43545663,17207.0,17206.0,0.3]
[1673230720304,0.43545786,17207.0,17206.0,0.309]
[1673230720515,0.43545786,17207.0,17206.0,0.3]
[1673230721123,0.00647985,17208.0,17206.0,0.3]
[1673230722130,0.002,17207.0,17206.0,0.3]
[1673230722384,0.35032963,17207.0,17206.0,0.3]
[1673230722643,0.35032963,17207.0,17206.0,0.313]
[1673230723157,0.34832963,17207.0,17206.0,0.313]
[1673230723421,0.34832963,17207.0,17206.0,0.3]
[1673230723678,0.35032963,17207.0,17206.0,0.384]
[1673230724926,0.002,17207.0,17206.0,0.384]
[1673230725171,0.35030703,17207.0,17206.0,0.384]
[1673230725686,0.43736262,17207.0,17206.0,0.748417]
[1673230725935,0.43736262,17207.0,17206.0,1.19847268]
[1673230726177,0.17350594,17207.0,17206.0,0.748417]
[1673230726979,0.17350594,17207.0,17206.0,0.384]
[1673230726980,0.52181297,17207.0,17206.0,0.384]
[1673230727224,0.29632879,17207.0,17206.0,0.384]
[1673230728791,0.43520118,17208.0,17206.0,0.384]
[1673230729543,0.43520118,17208.0,17206.0,0.96261601]
[1673230730044,0.43520118,17208.0,17206.0,0.89261601]
[1673230731039,0.43520118,17208.0,17206.0,0.87861601]
[1673230731293,0.46320118,17208.0,17206.0,0.88061601]
[1673230735096,0.34809189,17207.0,17206.0,0.88061601]
[1673230736108,0.60916944,17207.0,17206.0,0.87861601]
[1673230736372,0.60905052,17207.0,17206.0,0.89261601]
[1673230736622,0.78317415,17207.0,17206.0,0.89261601]
[1673230737132,1.04425392,17207.0,17206.0,0.89261601]
[1673230737388,0.60905274,17207.0,17206.0,0.89261601]
[1673230737647,0.43520118,17208.0,17206.0,2.50807484]
[1673230737648,0.43512214,17208.0,17206.0,2.50807484]
[1673230737941,0.17404237,17209.0,17207.0,0.92231742]
[1673230738174,2.46012214,17210.0,17208.0,1.09927247]
[1673230738432,2.46012214,17210.0,17209.0,0.364417]
[1673230738687,2.46012214,17210.0,17209.0,0.777017]
[1673230739196,2.46012214,17210.0,17209.0,0.77740073]
[1673230739440,2.46012214,17210.0,17209.0,0.55398373]
[1673230739441,2.46112214,17210.0,17209.0,0.55398373]
[1673230739699,2.20004237,17210.0,17209.0,0.91837073]
[1673230740955,2.46112214,17210.0,17209.0,1.13272784]
[1673230741524,2.20004237,17210.0,17209.0,1.49711484]
[1673230741818,2.026,17210.0,17209.0,1.49711484]
[1673230742330,2.026,17210.0,17209.0,1.94209645]
[1673230742583,2.026,17210.0,17209.0,1.49711484]
[1673230743877,2.20004237,17210.0,17209.0,1.49711484]
[1673230744615,2.026,17210.0,17209.0,1.49711484]
[1673230745897,2.026,17210.0,17209.0,2.6425743]
[1673230746426,2.026,17210.0,17209.0,2.7548743]
[1673230746933,2.025,17210.0,17209.0,2.6138743]
[1673230747188,2.025,17210.0,17209.0,2.7528743]
[1673230747435,2.025,17210.0,17209.0,2.6138743]
[1673230747693,2.025,17210.0,17209.0,2.7528743]
[1673230749715,2.025,17210.0,17209.0,3.31587408]
[1673230749976,2.025,17210.0,17209.0,3.28947408]
[1673230750233,2.025,17210.0,17209.0,4.43999749]
[1673230750538,2.025,17210.0,17209.0,4.30099749]
[1673230750744,2.025,17210.0,17209.0,4.29224386]
[1673230750994,2.025,17210.0,17209.0,4.8408997]
[1673230751241,2.025,17210.0,17209.0,4.9788997]
[1673230751499,2.025,17210.0,17209.0,4.8408997]
[1673230751790,2.025,17210.0,17209.0,4.1338997]
[1673230752035,1.96297261,17210.0,17209.0,4.11974386]
[1673230752544,1.9009278,17210.0,17209.0,12.16779217]
[1673230752800,0.01310611,17213.0,17210.0,0.48303869]
[1673230753086,0.01310611,17213.0,17212.0,1.8078]
[1673230753342,0.01310611,17213.0,17212.0,2.60808876]
[1673230754096,0.01310611,17213.0,17212.0,2.29458876]
[1673230754368,0.01310611,17213.0,17212.0,2.73258876]
[1673230754867,0.01310611,17213.0,17212.0,2.59458876]
[1673230755366,0.01310611,17213.0,17212.0,3.33035314]
[1673230755616,0.00531229,17215.0,17213.0,0.84867088]
[1673230755867,0.00531229,17215.0,17214.0,0.701787]
[1673230756638,0.00531229,17215.0,17214.0,0.70217062]
[1673230756889,0.00531229,17215.0,17214.0,1.28977062]
[1673230757134,0.00531229,17215.0,17214.0,1.58977062]
[1673230757386,0.00531229,17215.0,17214.0,1.72877062]
[1673230758162,0.00531229,17215.0,17214.0,2.30551474]
[1673230758670,0.00531229,17215.0,17214.0,2.7419165]
[1673230758922,0.00531229,17215.0,17214.0,2.38771871]
[1673230759173,0.00531229,17215.0,17214.0,1.94994669]
[1673230759687,0.00531229,17215.0,17214.0,2.38771871]
[1673230759944,0.00531229,17215.0,17214.0,2.68771871]
[1673230760210,0.00531229,17215.0,17214.0,2.38771871]
[1673230761017,0.00531229,17215.0,17214.0,2.24871871]
[1673230761233,0.00531229,17215.0,17214.0,2.38771871]
[1673230761752,0.00531229,17215.0,17214.0,2.68771871]
[1673230762009,0.00531229,17215.0,17214.0,10.18771871]
[1673230762520,0.00531229,17215.0,17214.0,9.44994669]
[1673230762777,0.00531229,17215.0,17214.0,10.18771871]
[1673230763543,0.00531229,17215.0,17214.0,1.94994669]
[1673230764293,0.00531229,17215.0,17214.0,2.38771871]
[1673230765301,0.00531229,17215.0,17214.0,1.94994669]
[1673230765550,0.00531229,17215.0,17214.0,9.44994669]
[1673230766580,0.00531229,17215.0,17214.0,1.81094669]
[1673230766820,0.00531229,17215.0,17214.0,1.94994669]
[1673230771669,0.00531229,17215.0,17214.0,9.74994669]
[1673230771920,0.00531229,17215.0,17214.0,9.44994669]
[1673230772168,0.00531229,17215.0,17214.0,9.74994669]
[1673230772665,0.00531229,17215.0,17214.0,9.61094669]
[1673230772928,0.00531229,17215.0,17214.0,9.74994669]
[1673230773433,0.00531229,17215.0,17214.0,9.44994669]
[1673230774690,0.00531229,17215.0,17214.0,1.94994669]
[1673230776215,0.00531229,17215.0,17214.0,2.38771871]
[1673230776474,0.00531229,17215.0,17214.0,1.72494669]
[1673230776736,0.00531229,17215.0,17214.0,9.22494669]
[1673230777742,0.00531229,17215.0,17214.0,1.72494669]
[1673230779733,0.00531229,17215.0,17214.0,1.98963268]
[1673230779979,0.00531229,17215.0,17214.0,1.98956039]
[1673230780986,0.00531229,17215.0,17214.0,1.9894881]
[1673230781234,0.00531229,17215.0,17214.0,2.2894881]
[1673230781738,0.00531229,17215.0,17214.0,9.92597834]
[1673230781981,0.00531229,17215.0,17214.0,10.22590605]
[1673230782478,0.00531229,17215.0,17214.0,9.78941581]
[1673230782995,0.00531229,17215.0,17214.0,9.78934352]
[1673230783248,0.00531229,17215.0,17214.0,9.48934352]
[1673230783501,0.00531229,17215.0,17214.0,2.28934352]
[1673230784003,0.00531229,17215.0,17214.0,9.78927123]
[1673230784262,0.00531229,17215.0,17214.0,10.22576147]
[1673230784770,0.00531229,17215.0,17214.0,9.78927123]
[1673230784984,0.00531229,17215.0,17214.0,10.22568918]
[1673230786003,0.00531229,17215.0,17214.0,10.22561689]
[1673230787007,0.00531229,17215.0,17214.0,10.2255446]
[1673230787501,0.00531229,17215.0,17214.0,2.7255446]
[1673230788270,0.17935466,17215.0,17214.0,2.7255446]
[1673230790308,0.17935466,17215.0,17214.0,2.4255446]
[1673230790582,0.17935466,17215.0,17214.0,1.98905436]
[1673230790843,0.44043443,17215.0,17214.0,2.79292604]
[1673230791098,0.00531229,17215.0,17214.0,3.64722409]
[1673230791889,0.00531229,17215.0,17214.0,3.50822409]
[1673230792143,0.00531229,17215.0,17214.0,3.64622409]
[1673230793196,0.00531229,17215.0,17214.0,3.50822409]
[1673230793437,0.00531229,17215.0,17214.0,3.64622409]
[1673230794176,0.00531229,17215.0,17214.0,11.14622409]
[1673230795713,0.00531229,17215.0,17214.0,3.64622409]
[1673230795998,0.00531229,17215.0,17214.0,11.14622409]
[1673230797276,0.00531229,17215.0,17214.0,11.74622409]
[1673230797794,0.00531229,17215.0,17214.0,11.69622409]
[1673230799293,0.00531229,17215.0,17214.0,11.55822409]
[1673230799541,0.00531229,17215.0,17214.0,11.69622409]
[1673230801069,0.00531229,17215.0,17214.0,11.80752409]
[1673230802071,0.00531229,17215.0,17214.0,11.66952409]
[1673230802586,0.00531229,17215.0,17214.0,11.80752409]
[1673230803116,0.00531229,17215.0,17214.0,11.66952409]
[1673230803643,0.00531229,17215.0,17214.0,11.80752409]
[1673230804963,0.00531229,17215.0,17214.0,11.97462409]
[1673230805710,0.00531229,17215.0,17214.0,11.83662409]
[1673230805997,0.00531229,17215.0,17214.0,11.97462409]
[1673230806249,0.00531229,17215.0,17214.0,11.80842409]
[1673230806504,0.00531229,17215.0,17214.0,11.69592409]
[1673230810087,0.00531229,17215.0,17214.0,11.69584012]
[1673230811613,0.00531229,17215.0,17214.0,11.47134012]
[1673230812647,0.00531229,17215.0,17214.0,10.87134012]
[1673230812934,0.00531229,17215.0,17214.0,11.47134012]
[1673230813187,0.00531229,17215.0,17214.0,10.57134012]
[1673230813400,0.00531229,17215.0,17214.0,10.87134012]
[1673230813673,0.00531229,17215.0,17214.0,11.47134012]
[1673230815187,0.00531229,17215.0,17214.0,10.87134012]
[1673230815927,0.00531229,17215.0,17214.0,10.57134012]
[1673230816435,0.00531229,17215.0,17214.0,10.87134012]
[1673230816674,0.00531229,17215.0,17214.0,11.47134012]
[1673230818450,0.00531229,17215.0,17214.0,3.67134012]
[1673230818707,0.00531229,17215.0,17214.0,3.97134012]
[1673230818974,0.00531229,17215.0,17214.0,11.47134012]
[1673230823630,0.00531229,17215.0,17214.0,2.63484988]
[1673230823879,0.00531229,17215.0,17214.0,3.23484988]
[1673230824135,0.00531229,17215.0,17214.0,10.73484988]
[1673230825144,0.00531229,17215.0,17214.0,3.23484988]
[1673230825679,0.00531229,17215.0,17214.0,3.53484988]
[1673230826891,0.00531229,17215.0,17214.0,3.23484988]
[1673230827650,0.00569591,17215.0,17214.0,2.63625811]
[1673230827902,0.76880506,17215.0,17214.0,1.05658217]
[1673230828148,0.60760506,17215.0,17214.0,1.05658217]
[1673230828391,0.34652529,17215.0,17214.0,0.91858217]
[1673230828645,0.34690891,17215.0,17214.0,0.91858217]
[1673230828903,0.34652529,17215.0,17214.0,0.91858217]
[1673230829168,0.34752529,17215.0,17214.0,1.05658217]
[1673230829423,0.34652529,17215.0,17214.0,0.91858217]
[1673230829665,0.34690891,17215.0,17214.0,0.91858217]
[1673230830417,0.60860506,17215.0,17214.0,1.05758217]
[1673230830667,0.34790891,17215.0,17214.0,0.91858217]
[1673230830916,0.34852529,17215.0,17214.0,1.05758217]
[1673230831649,0.34890891,17215.0,17214.0,1.05758217]
[1673230831898,0.34852529,17215.0,17214.0,1.05758217]
[1673230832364,0.60960506,17215.0,17214.0,1.05758217]
[1673230832919,0.60998868,17215.0,17214.0,1.05758217]
[1673230834148,0.60960506,17215.0,17214.0,0.503276]
[1673230834658,0.00731229,17215.0,17214.0,0.503276]
[1673230834896,0.18142529,17215.0,17214.0,0.503276]
[1673230835186,0.00731229,17215.0,17214.0,1.203276]
[1673230835709,0.18142529,17215.0,17214.0,1.203276]
[1673230835937,0.44250506,17215.0,17214.0,1.10492326]
[1673230836190,0.18142529,17215.0,17214.0,1.10492326]
[1673230836435,0.00547429,17215.0,17214.0,1.10492326]
[1673230836687,0.00547429,17215.0,17214.0,1.40492326]
[1673230837665,0.00585791,17215.0,17214.0,1.40492326]
[1673230837912,0.00547429,17215.0,17214.0,1.40492326]
[1673230841191,0.00547429,17215.0,17214.0,1.90492326]
[1673230842435,0.00585791,17215.0,17214.0,1.90492326]
[1673230842746,0.00547429,17215.0,17214.0,1.90492326]
[1673230844555,0.00547429,17215.0,17214.0,2.49887093]
[1673230844908,0.00547429,17215.0,17214.0,3.49588683]
[1673230845161,0.00547429,17215.0,17214.0,11.29588683]
[1673230849332,0.00547429,17215.0,17214.0,2.46831474]
[1673230850586,0.17427429,17215.0,17214.0,2.46831474]
[1673230855409,0.17465791,17215.0,17214.0,2.46831474]
[1673230855929,0.17427429,17215.0,17214.0,2.46831474]
[1673230859493,0.17465791,17215.0,17214.0,2.46831474]
[1673230859764,0.17427429,17215.0,17214.0,2.46831474]
[1673230860238,0.34838729,17215.0,17214.0,2.46831474]
[1673230860497,0.34877091,17215.0,17214.0,2.46831474]
[1673230860747,0.34838729,17215.0,17214.0,2.46831474]
[1673230861008,0.60946706,17215.0,17214.0,2.46831474]
[1673230861255,0.34838729,17215.0,17214.0,2.46831474]
[1673230861509,0.34510129,17215.0,17214.0,2.46831474]
[1673230862263,0.60618106,17215.0,17214.0,2.46831474]
[1673230863529,0.77985328,17215.0,17214.0,2.46831474]
[1673230864056,0.77985328,17215.0,17214.0,1.60492326]
[1673230864309,0.77985328,17215.0,17214.0,1.339]
[1673230864565,0.7802369,17215.0,17214.0,0.639]
[1673230864887,0.95435831,17215.0,17214.0,1.003277]
[1673230865570,0.62265831,17215.0,17214.0,0.139]
[1673230865822,1.15786326,17215.0,17214.0,0.139]
[1673230866072,0.89046208,17215.0,17214.0,0.139]
[1673230866879,0.72266208,17215.0,17214.0,0.42946]
[1673230867375,1.15758648,17215.0,17214.0,0.42946]
[1673230870908,1.1579701,17215.0,17214.0,0.42946]
[1673230872156,0.72266208,17215.0,17214.0,0.139]
[1673230872400,1.1578437,17215.0,17214.0,0.139]
[1673230873160,1.1577613,17215.0,17214.0,0.139]
[1673230874448,0.72266208,17215.0,17214.0,0.139]
[1673230874696,1.15767076,17215.0,17214.0,0.139]
[1673230875207,0.72266208,17215.0,17214.0,0.139]
[1673230875473,1.15767113,17215.0,17214.0,0.139]
[1673230876728,1.15728751,17215.0,17214.0,0.139]
[1673230877231,1.505229,17215.0,17214.0,0.139]
[1673230877491,1.11905054,17215.0,17214.0,0.139]
[1673230877755,0.77668958,17215.0,17214.0,0.50316432]
[1673230878019,0.77668958,17215.0,17214.0,0.80316432]
[1673230878265,0.77668958,17215.0,17214.0,0.50316432]
[1673230878516,0.95075054,17215.0,17214.0,0.13888732]
[1673230880276,0.95113416,17215.0,17214.0,0.13888732]
[1673230882566,0.60319267,17215.0,17214.0,0.13888732]
[1673230882822,0.95106699,17215.0,17214.0,0.13888732]
[1673230883069,0.60319267,17215.0,17214.0,0.13888732]
[1673230884608,0.60280905,17215.0,17214.0,0.13826757]
[1673230885110,0.95069245,17215.0,17214.0,0.13826757]
[1673230885362,0.95069245,17215.0,17214.0,0.50254457]
[1673230886359,0.95107607,17215.0,17214.0,0.50254457]
[1673230886620,0.95069245,17215.0,17214.0,0.50254457]
[1673230886877,0.95069245,17215.0,17214.0,0.13826757]
[1673230887129,0.60884329,17215.0,17214.0,1.40254457]
[1673230887380,0.1739701,17215.0,17214.0,1.40254457]
[1673230887627,1.01496473,17216.0,17215.0,0.3]
[1673230887888,1.18892626,17216.0,17215.0,0.954687]
[1673230888136,1.01496473,17216.0,17215.0,0.954687]
[1673230888657,1.18901389,17216.0,17215.0,0.954687]
[1673230889166,0.79607296,17216.0,17215.0,1.19236489]
[1673230889414,0.18720184,17216.0,17215.0,1.57155625]
[1673230889922,0.18820184,17216.0,17215.0,1.71155625]
[1673230890185,0.18820184,17216.0,17215.0,2.41155625]
[1673230890444,0.79750085,17216.0,17215.0,1.794687]
[1673230890695,0.6230959,17216.0,17215.0,1.794687]
[1673230891965,0.62347952,17216.0,17215.0,1.794687]
[1673230892219,0.6230959,17216.0,17215.0,1.794687]
[1673230892733,0.6230959,17216.0,17215.0,1.795387]
[1673230892981,0.62347952,17216.0,17215.0,1.795387]
[1673230893230,0.6230959,17216.0,17215.0,1.795387]
[1673230893466,1.05810495,17216.0,17215.0,1.795387]
[1673230893727,0.6230959,17216.0,17215.0,1.795387]
[1673230894993,0.62347952,17216.0,17215.0,1.795387]
[1673230895244,0.79707296,17216.0,17215.0,1.795387]
[1673230896019,0.62314731,17216.0,17215.0,1.795387]
[1673230896526,0.62314731,17216.0,17215.0,1.095387]
[1673230897276,0.44932667,17216.0,17215.0,1.095387]
[1673230897735,0.44971029,17216.0,17215.0,1.095387]
[1673230898027,0.44932667,17216.0,17215.0,1.795387]
[1673230898514,0.18824327,17216.0,17215.0,1.795387]
[1673230900013,0.18824327,17216.0,17215.0,1.495387]
[1673230900304,0.62353093,17216.0,17215.0,0.8407]
[1673230900599,0.62353093,17216.0,17215.0,1.504977]
[1673230900869,0.79745658,17216.0,17215.0,1.1407]
[1673230901359,0.79745658,17216.0,17215.0,0.8407]
[1673230901630,0.96625658,17216.0,17215.0,0.8407]
[1673230901894,0.96625658,17216.0,17215.0,0.1407]
[1673230902152,0.61837318,17216.0,17215.0,0.1407]
[1673230905650,0.62531872,17216.0,17215.0,0.1407]
[1673230906363,0.6249351,17216.0,17215.0,0.1407]
[1673230906614,0.6249351,17216.0,17215.0,0.43113]
[1673230907373,1.06015642,17216.0,17215.0,0.43113]
[1673230908134,1.06015642,17216.0,17215.0,0.795407]
[1673230908632,1.06015642,17216.0,17215.0,0.43114]
[1673230910127,1.06054004,17216.0,17215.0,0.43114]
[1673230911838,0.62531872,17216.0,17215.0,0.43114]
[1673230913831,1.14764288,17216.0,17215.0,0.43114]
[1673230914819,0.97884288,17216.0,17215.0,0.43114]
[1673230917696,0.97845926,17216.0,17215.0,0.43114]
[1673230917960,0.4561351,17216.0,17215.0,0.43114]
[1673230918447,0.97845926,17216.0,17215.0,0.43114]
[1673230919210,0.97845926,17216.0,17215.0,0.1407]
[1673230919211,0.7937351,17216.0,17215.0,0.1407]
[1673230919469,2.0459839,17216.0,17215.0,0.14]
[1673230919999,1.4580121,17216.0,17215.0,0.14]
[1673230920758,1.4580121,17216.0,17215.0,0.13991779]
[1673230921265,0.6094053,17213.0,17212.0,0.59048]
[1673230922275,0.17411673,17212.0,17211.0,0.60972944]
[1673230922535,0.43529043,17212.0,17211.0,1.60022944]
[1673230922800,0.43529043,17212.0,17211.0,1.96450644]
[1673230924049,0.43529043,17212.0,17211.0,1.064277]
[1673230925067,0.73248322,17213.0,17212.0,0.70110431]
[1673230925329,0.43529168,17215.0,17212.0,2.03353608]
[1673230925587,0.44847219,17216.0,17214.0,0.2904]
[1673230925842,0.44847219,17216.0,17215.0,0.364277]
[1673230926115,0.44847219,17216.0,17215.0,0.90195489]
[1673230926353,0.44847219,17216.0,17215.0,1.50428111]
[1673230926611,0.44847219,17216.0,17215.0,2.1658801]
[1673230926885,0.44847219,17216.0,17215.0,2.8658801]
[1673230927126,0.44847219,17216.0,17215.0,2.7048801]
[1673230927377,0.44847219,17216.0,17215.0,2.5658801]
[1673230927891,0.44847219,17216.0,17215.0,3.10424146]
[1673230928134,0.44847219,17216.0,17215.0,1.90263836]
[1673230928964,0.44847219,17216.0,17215.0,2.04163836]
[1673230929987,0.44847219,17216.0,17215.0,2.04155216]
[1673230931508,0.44847219,17216.0,17215.0,2.64155216]
[1673230936691,0.44847219,17216.0,17215.0,3.37202904]
[1673230937939,0.44847219,17216.0,17215.0,2.64155216]
[1673230938430,0.44847219,17216.0,17215.0,2.94155216]
[1673230938670,0.44847219,17216.0,17215.0,3.37202904]
[1673230940157,0.44847219,17216.0,17215.0,10.87202904]
[1673230943219,0.44847219,17216.0,17215.0,11.46597671]
[1673230943472,0.44847219,17216.0,17215.0,11.80327671]
[1673230944516,0.44847219,17216.0,17215.0,11.97011075]
[1673230944773,0.44847219,17216.0,17215.0,11.83111075]
[1673230946285,0.44847219,17216.0,17215.0,11.96911075]
[1673230949502,0.44847219,17216.0,17215.0,12.58161075]
[1673230951744,0.36438365,17216.0,17215.0,12.04521535]
[1673230951986,0.36438365,17216.0,17215.0,12.62610035]
[1673230952490,0.36438365,17216.0,17215.0,12.48810035]
[1673230952744,0.36438365,17216.0,17215.0,12.62610035]
[1673230953268,0.01318051,17217.0,17216.0,0.97688]